Workbook

Sheet Sheet1
A3: Tabla de frecuencia
A8: Fecha de realizacion
C9: Frecuencia | D9: Porcentaje
A10: Válido | B10: 07-DEC-2017 | C10: 150 | D10: =+C10/1017 -> 0.1474926254
B11: 14-DEC-2017 | C11: 260 | D11: =+C11/1017 -> 0.255653884
B12: 19-DEC-2017 | C12: 170 | D12: 0.1671583088
B13: 21-DEC-2017 | C13: 262 | D13: 0.2576204523
B14: 22-DEC-2017 | C14: 175 | D14: 0.1720747296
B15: Total | C15: 1017 | D15: 1
A25: Tipo de actividad
C26: Frecuencia | D26: Porcentaje
A27: Válido | B27: CICLOVIA NOCTURNA | C27: 260 | D27: =+C27/1017 -> 0.255653884
B28: NOVENA BOSA | C28: 170 | D28: =+C28/1017 -> 0.1671583088
B29: NOVENA CIUDAD BOLIVAR | C29: 175 | D29: 0.1720747296
B30: NOVENA USME | C30: 262 | D30: 0.2576204523
B31: VELITAS | C31: 150 | D31: 0.1474926254
B32: Total | C32: 1017 | D32: 1
A41: ¿Vive usted en Bogotá?
C42: Frecuencia | D42: Porcentaje
A43: Válido | B43: Si | C43: 1002 | D43: =+C43/1017 -> 0.9852507375
B44: No | C44: 15 | D44: 0.01474926254
B45: Total | C45: 1017 | D45: 1
A56: 2 Lugar de residencia?
C57: Frecuencia | D57: Porcentaje
A58: Válido | B58: Nacional | C58: 10 | D58: =+C58/15 -> 0.6666666667
B59: Extranjero | C59: 4 | D59: =+C59/15 -> 0.2666666667
B60: Ns/Nr | C60: 1 | D60: 0.06666666667
B61: No aplica | C61: 1002 | D61: =+C61/1017 -> 0.9852507375
B62: Total | C62: 1017 | D62: 1
A74: 3 Primera visita
C75: Frecuencia | D75: Porcentaje
A76: Válido | B76: Si | C76: 4 | D76: =+C76/15 -> 0.2666666667
B77: No | C77: 11 | D77: =+C77/15 -> 0.7333333333
B78: No aplica | C78: 1002 | D78: =+C78/1017 -> 0.9852507375
B79: Total | C79: 1017 | D79: 1
A88: 4 Durmio o piensa dormir
C89: Frecuencia | D89: Porcentaje
A90: Válido | B90: Si | C90: 10 | D90: =+C90/15 -> 0.6666666667 | E90: =+C90/1017 -> 0.009832841691
B91: No | C91: 5 | D91: =+C91/15 -> 0.3333333333
B92: No aplica | C92: 1002 | D92: =+C92/1017 -> 0.9852507375
B93: Total | C93: 1017 | D93: 1
A102: 5 Cuantas noches
C103: Frecuencia | D103: Porcentaje
A104: Válido | B104: Dos | C104: 2 | D104: =+C104/10 -> 0.2
B105: Tres | C105: 3 | D105: =+C105/10 -> 0.3
B106: Quince | C106: 1 | D106: 0.1
B107: Sesenta | C107: 1 | D107: 0.1
B108: Ns/Nr | C108: 3 | D108: 0.3
B109: No aplica | C109: 1007 | D109: =+C109/1017 -> 0.9901671583
B110: Total | C110: 1017 | D110: =+C110/1017 -> 1
A121: 6 Donde se alojo o piensa
C122: Frecuencia | D122: Porcentaje
A123: Válido | B123: Hotel | C123: 3 | D123: =+C123/10 -> 0.3
B124: Casa de familiares o amigos | C124: 6 | D124: =+C124/10 -> 0.6
B125: Hostal | C125: 1 | D125: 0.1
B126: No aplica | C126: 1007 | D126: =+C126/1017 -> 0.9901671583
B127: Total | C127: 1017 | D127: 1
A136: 7 Motivo del viaje
C137: Frecuencia | D137: Porcentaje
A138: Válido | B138: Asistencia a el evento | C138: 4 | D138: =+C138/15 -> 0.2666666667
B139: Vacaciones/Recreación | C139: 3 | D139: =+C139/15 -> 0.2
B140: Negocios | C140: 3 | D140: 0.2
B141: Visitas a familiares o amigos | C141: 3 | D141: 0.2
B142: Otro ¿Cuál? | C142: 2 | D142: 0.1333333333
B143: No aplica | C143: 1002 | D143: =+C143/1017 -> 0.9852507375
B144: Total | C144: 1017 | D144: =+C144/1017 -> 1
A151: 8a Recorrido por la ciudad
C152: Frecuencia | D152: Porcentaje
A153: Válido | B153: Recorrido por la ciudad | C153: 9 | D153: =+C153/15 -> 0.6
A154: Válido | B154: Visitas a parques | C154: 6 | D154: 0.4
A155: Válido | B155: Vida nocturna | C155: 4 | D155: 0.2666666667
A156: Válido | B156: Cine | C156: 3 | D156: 0.2
A157: Válido | B157: Visitas a museos | C157: 2 | D157: 0.1333333333
A158: Válido | B158: Gastronomia | C158: 1 | D158: 0.06666666667
A159: Válido | B159: Compras | C159: 1 | D159: 0.06666666667
A160: Válido | B160: Ninguna | C160: 1 | D160: 0.06666666667
B171: Otro cual | C171: 20 | D171: =+C171/1017 -> 0.01966568338
B172: Compañeros | C172: 26 | D172: =+C172/1017 -> 0.0255653884
B173: Solo | C173: 105 | D173: 0.1032448378
B174: Novio | C174: 145 | D174: 0.1425762045
B175: Amigos | C175: 229 | D175: 0.2251720747
B176: Familiares | C176: 536 | D176: 0.5270403147
A186: 10 Por cual medio se entero
B187: dfdfdf | C187: Frecuencia | D187: Porcentaje
A188: Válido | B188: Ns/Nr | C188: 4 | D188: =+C188/1017 -> 0.003933136676
B189: Prensa | C189: 19 | D189: 0.01868239921
B190: Su lugar de estudio o trabajo | C190: 19 | D190: 0.01868239921
B191: Volantes, carteles | C191: 27 | D191: 0.02654867257
B192: Televisión | C192: 120 | D192: 0.1179941003
B193: Pasaba por acá | C193: 125 | D193: 0.1229105211
B194: Internet | C194: 163 | D194: 0.1602753196
B195: Otro ciudadano | C195: 199 | D195: 0.1956735497
B196: Radio | C196: 341 | D196: 0.3352999017
B197: Total | C197: 1017 | D197: =+C197/1017 -> 1
A210: 10a Cual medio de internet
C211: Frecuencia | D211: Porcentaje
A212: Válido | B212: Facebook | C212: 100 | D212: =+C212/163 -> 0.6134969325
B213: Otras páginas | C213: 27 | D213: =+C213/163 -> 0.1656441718
B214: Paginas institucionales | C214: 23 | D214: =+C214/163 -> 0.1411042945
B215: Twitter | C215: 8 | D215: =+C215/163 -> 0.0490797546
B216: Correo electrónico | C216: 1 | D216: =+C216/163 -> 0.006134969325
B217: Ns/Nr | C217: 4 | D217: =+C217/163 -> 0.0245398773
B218: No aplica | C218: 854 | D218: =+C218/1017 -> 0.8397246804
B219: Total | C219: 1017 | D219: 1
A226: 11a Ciclovia nocturna
C227: Frecuencia | D227: Porcentaje
A228: Válido | B228: 11a Ciclovia nocturna | C228: 449 | D228: 44.14945919
B229: 2,0 | C229: 564 | D229: 55.45722714
B230: 99,0 | C230: 4 | D230: 0.3933136676
B231: Total | C231: 1017 | D231: 100
A233: 11b Noche de las velitas
C234: Frecuencia | D234: Porcentaje
A235: Válido | B235: 11b Noche de las velitas | C235: 496 | D235: 48.77089479 | F235: Ciclovia nocturna | G235: 449 | H235: =+G235/1017 -> 0.4414945919
B236: 2,0 | C236: 518 | D236: 50.93411996 | F236: Noche de las velitas | G236: 496 | H236: =+G236/1017 -> 0.4877089479
B237: 99,0 | C237: 3 | D237: 0.2949852507 | F237: Novena de aginaldos | G237: 478 | H237: 0.4700098328
B238: Total | C238: 1017 | D238: 100 | F238: Lanzamieinto de la navidad | G238: 203 | H238: 0.1996066863
F239: Festival de verano | G239: 326 | H239: 0.3205506391
A240: 11c Novena de aginaldos
C241: Frecuencia | D241: Porcentaje
A242: Válido | B242: 11c Novena de aginaldos | C242: 478 | D242: 47.00098328
B243: 2,0 | C243: 532 | D243: 52.3107178
B244: 99,0 | C244: 7 | D244: 0.6882989184
B245: Total | C245: 1017 | D245: 100
A247: 11d Lanzamieinto de la navidad
C248: Frecuencia | D248: Porcentaje
A249: Válido | B249: 11d Lanzamieinto de la navidad | C249: 203 | D249: 19.96066863
B250: 2,0 | C250: 809 | D250: 79.54768928
B251: 99,0 | C251: 5 | D251: 0.4916420846
B252: Total | C252: 1017 | D252: 100
A254: 11e Festival de verano
C255: Frecuencia | D255: Porcentaje
A256: Válido | B256: 11e Festival de verano | C256: 326 | D256: 32.05506391
B257: 2,0 | C257: 684 | D257: 67.25663717
B258: 99,0 | C258: 7 | D258: 0.6882989184
B259: Total | C259: 1017 | D259: 100
A266: 12a Calidad
C267: Frecuencia | D267: Porcentaje
A268: Válido | B268: Uno | C268: 14 | D268: =+C268/1017 -> 0.01376597837
B269: Dos | C269: 24 | D269: 0.02359882006
B270: Tres | C270: 121 | D270: 0.1189773845
B271: Cuatro | C271: 357 | D271: 0.3510324484
B272: Cinco | C272: 487 | D272: 0.4788593904 | F272: 12. En una escala de 1 a 5, siendo 1 nada satisfecho, y 5 muy satisfecho,
B273: Ns/Nr | C273: 14 | D273: 0.01376597837
B274: Total | C274: 1017 | D274: 1 | F274: SDSDD | G274: SDSD
F275: Puntualidad | G275: 4.3
F276: Organización | G276: 4.3
F277: Duración | G277: 4.3
F278: Calidad | G278: 4.2
F279: Comodidad | G279: 4.2
F280: Seguridad | G280: 4.2
A281: 12b Comodidad
C282: Frecuencia | D282: Porcentaje
A283: Válido | B283: Uno | C283: 16 | D283: =+C283/1017 -> 0.01573254671
B284: Dos | C284: 35 | D284: =+C284/1017 -> 0.03441494592
B285: Tres | C285: 140 | D285: 0.1376597837
B286: Cuatro | C286: 371 | D286: 0.3647984267
B287: Cinco | C287: 448 | D287: 0.4405113078
B288: Ns/Nr | C288: 7 | D288: 0.006882989184
B289: Total | C289: 1017 | D289: 1
A291: 12c Puntualidad
C292: Frecuencia | D292: Porcentaje
A293: Válido | B293: Uno | C293: 18 | D293: =+C293/1017 -> 0.01769911504
B294: Dos | C294: 31 | D294: 0.03048180924
B295: Tres | C295: 130 | D295: 0.127826942
B296: Cuatro | C296: 340 | D296: 0.3343166175
B297: Cinco | C297: 473 | D297: 0.465093412
B298: Ns/Nr | C298: 25 | D298: 0.02458210423
B299: Total | C299: 1017 | D299: 1
A301: 12d Organizaciòn
C302: Frecuencia | D302: Porcentaje
A303: Válido | B303: Uno | C303: 6 | D303: =+C303/1017 -> 0.005899705015
B304: Dos | C304: 18 | D304: 0.01769911504
B305: Tres | C305: 119 | D305: 0.1170108161
B306: Cuatro | C306: 355 | D306: 0.34906588
B307: Cinco | C307: 512 | D307: 0.5034414946
B308: Ns/Nr | C308: 7 | D308: 0.006882989184
B309: Total | C309: 1017 | D309: 1
A311: 12e Seguridad
C312: Frecuencia | D312: Porcentaje
A313: Válido | B313: Uno | C313: 16 | D313: =+C313/1017 -> 0.01573254671
B314: Dos | C314: 26 | D314: 0.0255653884
B315: Tres | C315: 132 | D315: 0.1297935103
B316: Cuatro | C316: 340 | D316: 0.3343166175
B317: Cinco | C317: 498 | D317: 0.4896755162
B318: Ns/Nr | C318: 5 | D318: 0.004916420846
B319: Total | C319: 1017 | D319: 1
A321: 12f Duraciòn
C322: Frecuencia | D322: Porcentaje
A323: Válido | B323: Uno | C323: 12 | D323: =+C323/1017 -> 0.01179941003
B324: Dos | C324: 21 | D324: 0.02064896755
B325: Tres | C325: 90 | D325: 0.08849557522
B326: Cuatro | C326: 349 | D326: 0.343166175
B327: Cinco | C327: 494 | D327: 0.4857423795
B328: Ns/Nr | C328: 51 | D328: 0.05014749263
B329: Total | C329: 1017 | D329: 1
A336: 13 Conoce la programacion
C337: Frecuencia | D337: Porcentaje
A338: Válido | B338: Si | C338: 309 | D338: =+C338/1017 -> 0.3038348083
B339: No | C339: 703 | D339: 0.6912487709
B340: Ns/Nr | C340: 5 | D340: 0.004916420846
... 743 more rows
